[Event "SixDays Budapest GM-B May 2024"]
[Site "Budapest"]
[Date "2024.05.19"]
[Round "6.5"]
[White "Horvath, Adam"]
[Black "Lu, Maximillian"]
[Result "0-1"]
[ECO "B51"]
[WhiteElo "2448"]
[BlackElo "2373"]
[Annotator "TA"]
[PlyCount "136"]
[EventDate "2024.05.15"]
[EventType "tourn"]
[EventCountry "HUN"]
[SourceTitle "playchess.com"]
[Source "ChessBase"]
[SourceQuality "1"]
[TimeControl "40/5400+30:1800+30"]

{[%evp 47,136,26,20,13,51,51,63,68,69,53,96,24,29,45,31,0,0,-68,-64,-113,-109,-119,-82,-69,-59,-102,-64,-68,-35,-65,-39,-72,-16,-54,-23,-62,-66,-89,-25,-76,-14,-31,0,0,0,-92,-87,-219,-235,-252,-250,-252,-252,-247,-258,-266,-258,-298,-277,-365,-357,-417,-441,-428,-441,-437,-386,-535,-543,-668,-626,-853,-808,-765,-704,-1027,-1003,-993,-950,-896,-882,-875,-849,-1306,-1350,-5002,-1876,-6427,-6027,-29985,-29986]} 1. e4 {[%emt 0:00:03]} c5 {[%emt 0:00:07]} 2. Nf3 {[%emt 0:00:09]} d6 {[%emt 0:00:11]} 3. Bb5+ {[%emt 0:00:12]} Nd7 {[%emt 0:00:11]} 4. O-O {[%emt 0:00:18]} a6 {[%emt 0:00:36]} 5. Be2 {[%emt 0:00:14]} Ngf6 {[%emt 0:00:16]} 6. d3 {[%emt 0:00:07] B51: Sicilian: Moscow Variation (3 Bb5+) without 3...Bd7.} g6 {[%emt 0:00:55]} 7. c4 {[%emt 0:00:35]} Bg7 {[%emt 0:03:17]} 8. Nc3 {[%emt 0:00:15]} O-O {[%emt 0:00:14]} 9. d4 {[%emt 0:10:13]} cxd4 {[%emt 0:07:23]} 10. Nxd4 {[%emt 0:00:05]} Nc5 {[%emt 0:02:46]} 11. f3 {[%emt 0:01:35]} Qb6 {[%emt 0:00:47]} 12. Kh1 {[%emt 0:00:19]} Be6 $146 {[%emt 0:02:44]} ({Predecessor:} 12... Ne6 13. Nc2 Bd7 14. Rb1 Qa5 15. Be3 Rfc8 16. b4 Qd8 17. Nd5 Nxd5 18. exd5 Nf8 {½-½ Karthikeyan,M (2622)-Sethuraman,S (2619) MPL Indian Chess Tour N1 rapid 2022 (11)}) 13. Rb1 {[%emt 0:01:43]} Rfc8 {[%emt 0:00:42]} 14. Be3 {[%emt 0:04:47]} Qd8 {[%emt 0:01:43]} 15. b4 {[%emt 0:06:26]} Ncd7 {[%emt 0:00:17]} 16. Nxe6 {[%emt 0:00:11]} fxe6 {[%emt 0:00:01]} 17. Qb3 {[%emt 0:00:35]} Kh8 {[%emt 0:05:22]} 18. Rbc1 {[%emt 0:25:36]} Rc6 {[%emt 0:03:03]} 19. Rfd1 {[%emt 0:06:12]} Qf8 {[%emt 0:02:59]} 20. Bf1 {[%emt 0:17:51]} Bh6 {[%emt 0:06:37]} 21. Ne2 {[%emt 0:00:04]} e5 {[%emt 0:03:34]} 22. Bxh6 {[%emt 0:05:40]} Qxh6 {[%emt 0:00:03]} 23. Nc3 {[%emt 0:00:11]} Rac8 {[%emt 0:13:23]} 24. Qb2 {[%emt 0:03:48]} Nh5 {[%emt 0:16:32]} 25. Qf2 {[%emt 0:00:43]} Ndf6 {[%emt 0:05:26]} 26. Nd5 {[%emt 0:02:06]} Qf8 {[%emt 0:01:18]} 27. Kg1 {[%emt 0:01:05]} Ng7 {[%emt 0:13:15]} 28. c5 {[%emt 0:07:11]} dxc5 {[%emt 0:06:25]} 29. bxc5 {[%emt 0:00:08]} (29. Rxc5 $16 Rxc5 30. bxc5) 29... Ne6 $11 {[%emt 0:00:08]} 30. Qb2 {[%emt 0:05:04]} Nxc5 {[%emt 0:00:49]} 31. Rb1 {[%emt 0:00:44]} Nfd7 {[%emt 0:01:01]} 32. Ne3 {[%emt 0:00:46]} (32. a4 $1 $11) 32... b5 {[%emt 0:00:21]} 33. Rd2 {[%emt 0:00:36]} (33. Ng4 $15) 33... Na4 $17 {[%emt 0:00:55]} 34. Qb4 {[%emt 0:00:09]} Rd6 {[%emt 0:01:40]} 35. Rbd1 {[%emt 0:00:46]} Rcc6 {[%emt 0:00:37]} 36. Rxd6 {[%emt 0:00:38]} Rxd6 {[%emt 0:00:46]} 37. Rc1 {[%emt 0:00:07]} Nab6 {[%emt 0:00:39]} (37... Qd8 {is more complex.} 38. h4 Qb6 39. Rc8+ Kg7) 38. Qb2 {[%emt 0:01:42]} Qb8 {[%emt 0:01:03]} 39. h4 {[%emt 0:00:29]} Qf8 {[%emt 0:01:07]} (39... h5 $17) 40. Qf2 {[%emt 0:00:18]} Nf6 {[%emt 0:00:25]} 41. Rc5 {[%emt 0:30:29]} Nbd7 {[%emt 0:30:07]} 42. Rc1 {[%emt 0:00:19]} Nh5 {[%emt 0:00:39]} ({Black should try} 42... Qb8 $17) 43. g3 {[%emt 0:00:19]} (43. a4 $11 {remains equal.}) 43... Ng7 {[%emt 0:00:44]} ({Better is} 43... Nhf6 $17) 44. Bh3 {[%emt 0:00:17]} Ne6 {[%emt 0:00:28]} (44... Nb6 $5) 45. Nd5 {[%emt 0:01:10]} Nd4 {[%emt 0:00:48]} 46. Kg2 {[%emt 0:00:17]} (46. f4 $11 {keeps the balance.}) 46... e6 $17 {[%emt 0:00:11]} 47. Ne3 {[%emt 0:00:46] [#]} (47. Nc7 $17 {is a better defense.}) 47... Nxf3 $1 $19 {[%emt 0:00:48]} 48. Rc2 {[%emt 0:00:40] [#]} Nd4 $1 {[%emt 0:00:07]} 49. Qxf8+ Nxf8 50. Rc8 {[%emt 0:00:42]} Kg7 {[%emt 0:00:12]} 51. Ng4 {[%emt 0:00:28]} Nd7 {[%emt 0:00:29]} 52. Rc7 {[%emt 0:00:27]} Nc6 {[%emt 0:00:07]} 53. Ne3 {[%emt 0:00:35]} Kf7 {[%emt 0:00:30]} 54. a4 {[%emt 0:00:12]} Ke7 {[%emt 0:01:21]} (54... bxa4 55. Nc4 Ke7 56. Rc8 $19) 55. axb5 {[%emt 0:00:03]} axb5 {[%emt 0:00:01]} 56. Rb7 {[%emt 0:00:38]} Rd2+ {[%emt 0:01:38]} 57. Kf1 {[%emt 0:00:14]} Nd4 {[%emt 0:00:07]} 58. Bg4 {[%emt 0:01:16]} h5 {[%emt 0:00:57]} 59. Bd1 {[%emt 0:00:04]} Kd6 {[%emt 0:00:30]} 60. Ke1 {[%emt 0:00:08]} Rh2 {[%emt 0:00:34]} 61. g4 {[%emt 0:01:31]} Nc5 {[%emt 0:00:28]} 62. Rb8 {[%emt 0:00:12]} Nxe4 {[%emt 0:00:20]} 63. gxh5 {[%emt 0:00:15]} Rh1+ {[%emt 0:00:17]} 64. Nf1 {[%emt 0:00:04]} gxh5 {[%emt 0:00:40]} ({Not} 64... Rxh4 65. hxg6 Nf5 66. Rb7 $15) 65. Be2 {[%emt 0:01:04]} Ng3 {[%emt 0:00:28]} 66. Bd3 {[%emt 0:00:30]} e4 {[%emt 0:00:19]} 67. Kf2 {[%emt 0:00:06]} exd3 {[%emt 0:00:43]} 68. Rd8+ {[%emt 0:00:25]} Ke5 {[%emt 0:00:26]} 0-1